Cogmind - Beta 11.1 @@@ ROGUE MODE // 2022.07.23 @ 21:44:31 Player: tkc Result: Destroyed by as-73617 with Assembled Rifle Performance ------------- Evolutions (0) 0 Regions Visited (2) 400 Robots Destroyed (20) 100 Value Destroyed (396) 396 Prototype IDs (0) 0 Alien Tech Used (0) 0 Bonus (-23) -23 TOTAL SCORE: 873 Bonus ------- Friendly Fire -23 Cogmind --------- Core Integrity 0/250 Matter 127/300 Energy 70/100 System Corruption 0% Temperature Cool (0) Movement Treading (240) Ox1 Location -10/Mines Parts ------- > --- POWER (1) -------- (None) > --- PROPULSION (2) --- Light Treads Light Treads > --- UTILITY (2) ------ High-capacity Storage Unit > --- WEAPON (2) ------- EM Pulse Gun EM Pulse Gun > --- INVENTORY (20) --- Light Ion Engine Sensor Array Weapon Shielding Weapon Shielding Light Assault Rifle Light Assault Rifle Light Assault Rifle Light Cannon Mining Laser Peak State ------------ > --- POWER ------------ Light Ion Engine > --- PROPULSION ------- Light Treads Compact Wheel > --- UTILITY ---------- Large Storage Unit Light Armor Plating > --- WEAPON ----------- Bore Cannon Mining Laser > --- INVENTORY -------- Light Ion Engine Light Ion Engine Light Treads Wheel Sensor Array Weapon Shielding Weapon Shielding Light Armor Plating EM Pulse Gun EM Pulse Gun Light Assault Rifle Light Assault Rifle Light Assault Rifle Light Cannon Grenade Launcher [Rating: 12] Favorites ----------- Power Light Ion Engine Engine Light Ion Engine Propulsion Compact Wheel Treads Light Treads Wheel Compact Wheel Utility Large Storage Unit Device Improved Terrain Scanner Storage Large Storage Unit Protection Light Armor Plating Weapon Light Assault Rifle Energy Gun EM Pulse Gun Ballistic Gun Light Assault Rifle Ballistic Cannon Bore Cannon Launcher Grenade Launcher Special Weapon Mining Laser Build | -11 -10 -10 ------- Run | Scr Mat Min Slots Evolved . | . . . Power . | . . . Propulsion . | . . . Utility . | . . . Weapon . | . . . Parts Attached 36 | 7 13 16 Power 3 | 1 1 1 Engine 3 | 1 1 1 Core . | . . . Reactor . | . . . Propulsion 10 | 2 3 5 Treads 6 | . 2 4 Leg . | . . . Wheel 4 | 2 1 1 Hover . | . . . Flight . | . . . Utility 8 | 2 4 2 Device 1 | 1 . . Storage 3 | 1 1 1 Processor . | . . . Hackware . | . . . Protection 4 | . 3 1 Artifact . | . . . Weapon 15 | 2 5 8 Energy Gun 5 | 1 . 4 Energy Cannon . | . . . Ballistic Gun 3 | 1 2 . Ballistic Cannon 1 | . . 1 Launcher 2 | . . 2 Special Weapon 4 | . 3 1 Impact Weapon . | . . . Slashing Weapon . | . . . Piercing Weapon . | . . . Special Melee Weapon . | . . . Unidentified Prototypes . | . . . Parts Lost 10 | . 1 9 Power 3 | . 1 2 Propulsion 3 | . . 3 Utility 2 | . . 2 Weapon 2 | . . 2 Highest Loss Streak 8 | . 1 8 To Critical Strikes . | . . . Average Slot Usage (%) 98 | . 99 96 Engine 13 | . 13 13 Treads 13 | . 13 13 Wheel 14 | . 14 14 Storage 14 | . 14 14 Protection 13 | . 13 12 Energy Gun 2 | . . 8 Ballistic Gun 14 | . 17 4 Special Weapon 10 | . 10 10 Naked Turns . | . . . Heaviest Build 58 | 12 28 58 Greatest Support 40 | 26 26 40 Greatest Overweight (x) 9 | . 9 3 Average Overweight (x) . | . . 1 Largest Inventory Capacity 20 | 8 15 20 Average Capacity 13 | 7 13 15 Most Carried 15 | 8 15 15 Average Carried 10 | 4 10 14 Final Capacity 20 | 8 15 20 Final Carried 15 | 8 15 9 Class Distribution -------------------- 100% | Mutant Dominant Class ---------------- Mutant | -10/Materials Mutant | -10/Mines Resources | -11 -10 -10 ----------- Run | Scr Mat Min Matter Collected 557 | 276 97 184 Remotely . | . . . Salvage Created 624 | 182 255 187 Parts 45 | 14 20 11 Haulers Intercepted 1 | . 1 . Recyclers Shooed 1 | . . 1 Parts Field Recycled . | . . . Retrieved Matter . | . . . Parts Self-Destructed . | . . . Prevented . | . . . Kills | -11 -10 -10 ------- Run | Scr Mat Min Combat Hostiles Destroyed 20 | . 6 14 Guns 7 | . 6 1 Cannons 1 | . . 1 AOE 12 | . . 12 Classes Destroyed 8 | 3 4 1 Worker 3 | 1 . 2 Tunneler 4 | 4 . . Hauler 1 | . 1 . Recycler 1 | 1 . . Watcher 1 | . 1 . Swarmer 2 | . 2 . Grunt 8 | . 4 4 Assembled 10 | . . 10 Best Kill Streak 12 | 6 3 12 Combat Bots Only 10 | . 3 10 Max Kills in Single Turn 4 | 1 1 4 Gunslinging . | . . . Exploded 4 | . . 4 Melee . | . . . Uniques/NPCs Destroyed . | . . . Combat | -11 -10 -10 -------- Run | Scr Mat Min Damage Taken 1332 | . 408 924 Core 258 | . 80 178 Absorbed by Shields . | . . . Redirected to Shielding 19 | . 19 . Core Remaining (%) 100 | 100 . . Volleys Fired 87 | 16 53 18 Largest 2 | 2 2 1 Hottest 100 | 70 100 57 Shots Fired 141 | 32 91 18 Gun 112 | 32 76 4 Cannon 4 | . . 4 Launcher 10 | . . 10 Special 15 | . 15 . Kinetic 96 | 16 76 4 Thermal 31 | 16 15 . Explosive 10 | . . 10 Electromagnetic 4 | . . 4 Robot Hit Streak 18 | 9 14 18 Robot Miss Streak 5 | 2 5 2 Penetration Max . | . . . Secondary Targets 2 | . 2 . Max Gunslinging Chain 1 | . 1 . Shots Hit Robots 76 | 21 49 6 Core Hits 68 | 9 20 39 Critical Kills 1 | . . 1 Critical Parts Destroyed 2 | 1 . 1 Critical Strikes 4 | 2 . 2 Burn 1 | 1 . . Destroy 3 | 1 . 2 Melee Attacks . | . . . Impact . | . . . Slashing . | . . . Piercing . | . . . Sneak Attacks . | . . . Combat Hostiles . | . . . Follow-up Attacks . | . . . Damage Inflicted 1735 | 221 385 1129 Guns 656 | 221 385 50 Cannons 64 | . . 64 Explosions 1015 | . . 1015 Melee . | . . . Ramming . | . . . Kinetic 532 | 83 385 64 Thermal 138 | 138 . . Explosive 1015 | . . 1015 Electromagnetic 50 | . . 50 Impact . | . . . Slashing . | . . . Piercing . | . . . Highest Corruption . | . . . Average Corruption . | . . . Corruption Purged . | . . . Corruption Blocked . | . . . Overload Shots . | . . . Overflow Damage 82 | . . 82 Projectiles 3 | . . 3 Explosions 79 | . . 79 Melee . | . . . Knockbacks . | . . . Impact . | . . . Kinetic . | . . . Secondary . | . . . Self-Inflicted Damage 87 | . . 87 Shots 4 | . . 4 Rammed . | . . . Targets Rammed . | . . . Kicked . | . . . Crushed . | . . . Highest Temperature 82 | 60 64 82 Average Temperature 23 | 28 16 41 Received Heat Transfer 276 | . 174 102 Siege Activations . | . . . Robots Corrupted . | . . . Combat Hostiles . | . . . Parts Fried . | . . . Impact Corruptions . | . . . Robots Melted . | . . . Combat Hostiles . | . . . Parts Melted 2 | 2 . . Heat Transferred 481 | 481 . . Parts Sabotaged . | . . . Parts Stolen . | . . . Parts Stripped . | . . . Power Chain Reactions . | . . . Missiles Intercepted . | . . . Alert | -11 -10 -10 ------- Run | Scr Mat Min Peak Influence 271 | 30 271 195 Initial 19 | . 19 . Average 75 | 14 77 91 Maximum Alert Level 1 | . 1 . Low Security (%) 93 | 100 90 100 Level 1 6 | . 9 . Level 2 . | . . . Level 3 . | . . . Level 4 . | . . . Level 5 . | . . . High Security . | . . . Max Security . | . . . Squads Dispatched 1 | . 1 . Investigation 1 | . 1 . Extermination . | . . . Reinforcement . | . . . Assault . | . . . Garrison . | . . . Intercept . | . . . Searches Triggered . | . . . Construction Impeded . | . . . Haulers Reinforced . | . . . Active Scanning Responses . | . . . Cargo Convoy Interrupts . | . . . Stealth | -11 -10 -10 --------- Run | Scr Mat Min Distress Signals 3 | . 2 1 Communications Jammed . | . . . Distress Signals . | . . . Times Spotted 43 | . 16 27 Peak Tracking Total 17 | . 4 17 Tactical Retreats 2 | . 1 1 Traps | -11 -10 -10 ------- Run | Scr Mat Min Traps Triggered 3 | . 3 . Indirectly . | . . . Trap Hack Attempts . | . . . Triggered . | . . . Disarmed . | . . . Reprogrammed . | . . . Reused . | . . . Traps Extracted . | . . . Installed . | . . . Triggered . | . . . Machines | -11 -10 -10 ---------- Run | Scr Mat Min Machines Disabled 1 | . . 1 Max in Single Turn 1 | . . 1 Machines Sabotaged . | . . . Garrisons Compromised . | . . . Overloaded Fab Kills . | . . . Hacking | -11 -10 -10 --------- Run | Scr Mat Min Machines Accessed 9 | . 8 1 Terminals 8 | . 7 1 Fabricators . | . . . Repair Stations . | . . . Recycling Units 1 | . 1 . Scanalyzers . | . . . Garrison Access . | . . . Total Hacks 25 | . 21 4 Successful 16 | . 13 3 Failed 9 | . 8 1 Catastrophic 2 | . 2 . Database Lockouts . | . . . Manual 18 | . 15 3 Terminals 23 | . 19 4 Fabricators . | . . . Repair Stations . | . . . Recycling Units 2 | . 2 . Scanalyzers . | . . . Garrison Access . | . . . Terminal Hacks 8 | . 5 3 Robot Analysis 2 | . 2 . Level Access Points 1 | . . 1 Branch Access Points 1 | . 1 . Terminal Index 1 | . 1 . Alert Level 1 | . 1 . Locate Traps 1 | . . 1 Zone Layout 1 | . . 1 Fabricator Hacks . | . . . Repair Station Hacks . | . . . Recycling Unit Hacks 2 | . 2 . Report Inventory 1 | . 1 . Retrieve Components 1 | . 1 . Scanalyzer . | . . . Garrison Access Hacks . | . . . Unauthorized Hacks 6 | . 6 . Terminals 6 | . 6 . Botnet 5 | . 5 . Operators 1 | . 1 . Fabricators . | . . . Repair Stations . | . . . Recycling Units . | . . . Scanalyzers . | . . . Garrison Access . | . . . Data Cores Recovered . | . . . Used . | . . . Hacking Detections 9 | . 8 1 Full Trace Events . | . . . Feedback Events . | . . . Feedback Blocked . | . . . Robot Schematics Acquired . | . . . Robots Built . | . . . Authchips . | . . . Time . | . . . Total Robot Build Rating . | . . . Part Schematics Acquired . | . . . Parts Built . | . . . Authchips . | . . . Time . | . . . Total Part Build Rating . | . . . Parts Repaired . | . . . Time . | . . . Parts Recycled . | . . . Recycled Matter . | . . . Retrieved Matter . | . . . Retrieved Components 10 | . 10 . Parts Scanalyzed . | . . . Part Schematics Acquired . | . . . Parts Damaged . | . . . Bothacking | -11 -10 -10 ------------ Run | Scr Mat Min Used RIF Installer . | . . . Robots Hacked . | . . . Non-combat . | . . . Combat . | . . . Robot Hacks Applied . | . . . Relay Couplers Released . | . . . Fabnet Peak Effective % . | . . . Robots Rewired . | . . . Allies Hacked . | . . . Hacks Repelled . | . . . Allies | -11 -10 -10 -------- Run | Scr Mat Min Total Allies . | . . . Largest Group . | . . . Highest-Rated Group . | . . . Highest-Rated Ally . | . . . Total Orders . | . . . Ally Attacks . | . . . Total Damage . | . . . Kills . | . . . Allies Corrupted . | . . . Allies Melted . | . . . Intel | -11 -10 -10 ------- Run | Scr Mat Min Robot Analysis Total 2 | . 2 . Derelict Logs Recovered 1 | . . 1 Drone Launches . | . . . Drone Recoveries . | . . . Exploration | -11 -10 -10 ------------- Run | Scr Mat Min Turns Passed 1739 | 136 1230 373 Spaces Moved 889 | 81 543 265 Core 7 | 4 3 . Treads 336 | . 330 6 Legs . | . . . Wheels 546 | 77 210 259 Hover . | . . . Flight . | . . . Fastest Speed 50 | 50 90 115 Average Speed 157 | 88 186 118 Slowest Speed 500 | 100 500 240 Overloaded Moves . | . . . Propulsion Burnouts . | . . . Robots Hopped . | . . . Cave-ins Triggered . | . . . Exploration Rate (%) 54 | 4 89 69 Regions Visited 2 Branch Regions 1 Pre-discovered Areas . | . . . Known Exits Taken 1 | . 1 . Unknown Exits Taken 1 | 1 . . Scrap Searched 2 | . . 2 Spaces Dug 15 | . 15 . Terrain Destroyed 55 | . 15 40 Melee . | . . . Projectile 19 | . 15 4 AOE 36 | . . 36 Terrain Rammed . | . . . Walls Destroyed . | . . . Machines Disabled . | . . . Actions | -11 -10 -10 --------- Run | Scr Mat Min Total 1064 | 113 649 302 Wait 25 | . 24 1 Move 887 | 80 542 265 Hop . | . . . Pick Up 21 | 9 11 1 Fast Attach 13 | 7 6 . Attach 8 | . 1 7 Detach . | . . . Swap 15 | . 6 9 Drop 8 | 1 6 1 Fire 87 | 16 53 18 Melee . | . . . Ram . | . . . Kick . | . . . Crush . | . . . Escape Stasis . | . . . Rewire . | . . . Trap . | . . . Miscellaneous . | . . . Route ------- -11/Scrapyard -10/Materials (discovered 4 exits: *Mat x2 / *Min x2) -10/Mines (discovered 2 exits: *Mat x2) History --------- Turn | Location | Event 18 | -11/Scrapyard | Discovered new exit (range 14) 137 | -11/Scrapyard | Entered Materials 242 | -10/Materials | Discovered new exit (range 8) 304 | -10/Materials | Build established: Mutant 307 | -10/Materials | Discovered new exit (range 16) 647 | -10/Materials | Discovered new exit (range 16) 950 | -10/Materials | Discovered new exit (range 16) 981 | -10/Materials | Identified exit to Mines 1367 | -10/Materials | Entered Mines 1373 | -10/Mines | Identified exit to Materials 1587 | -10/Mines | Learned Materials machine intel 1660 | -10/Mines | A weapon hastily lodged in a ceiling crevice suddenly fell to the ground 1689 | -10/Mines | Assembled infested the area 1694 | -10/Mines | Assisted by a Guerilla fighting off Assembled 1712 | -10/Mines | Core integrity fell below 50% 1728 | -10/Mines | Core integrity fell below 20% 1736 | -10/Mines | Destroyed 10 combat bots 1740 | -10/Mines | Destroyed by as-73617 with Assembled Rifle Last Messages --------------- 01713_ R-06 Scavenger suffers critical hit (Destroy). 01713_ Destroyed Com. Wheel. 01714_ R-06 Scavenger sends out distress signal. 01715_ HV Slug penetrates as-08472. 01715_ as-08472 suffers critical hit (Destroy). 01715_ as-08472 destroyed. 01716_ S-10 Pest destroyed. 01717_ Lgt. Armor Plating destroyed. 01717_ HV Slug penetrates Earth. 01719_ Lgt. Ion Engine destroyed. 01720_ as-96685 destroyed. 01721_ Com. Wheel destroyed. 01725_ as-03499 destroyed. 01729_ R-06 Scavenger collects Lgt. Ion Engine. 01729_ as-70710 destroyed. 01731_ The unstable cave ceiling collapses. 01737_ C-30 ARC bursts open, deploying its payload. 01737_ D-53 Grenadier unfolds itself. 01737_ Bore Cannon destroyed. 01737_ Lgt. Ion Engine destroyed. Map ----- +----------------------------------------------------+ | ???????????????????????????????????????????????? | | ????????????????????????????????????????????????# | | ?????????????????????????????????????????????#### | | ?????????????????????????????????????????????? | | ??????????????????????????????????????????????? | | ???????????????????????????????????????????????# | | ???????????????? ? ???????????????????????????? | | ?????????????? < ????????????????????????????# | | ??????????? ## ????????????????????????????# | | ????????? # # # #% ##??????????????????????###?# | | ??????? % "#?????????????????????## ## | | ??????? # "###???????????????????# | | ?????? =#???????????????????# | | ???????? %%*???????????????????## | | ????????? ?????????????????????## | | ?????????? % % "#??????????????????????## | | ???????????# ?????????????????######## | | ???????????# % ##??????????####### | | ????????????# "##?????????# ### | | ?????????????# % #?????????# ! [ #### | | ????????????## ! #?????????# ##### #?## | | ???????????## a ######???????????### ##?? | | ???????????# a%## ##?##?????????## = ##? | | ??????????# =% # a ## ??????????## #? | | ??????????# ### ### #??????????## #? | | ?????????#" #??# @ # #?????????## !##? | | ?????????### ???# d ### #???????### #?? | | ???????????## ????## [ # #??????## ##?? | | ????????????# ?????# #d ## #??##### / ##??? | | ????????????##??????#####% ### #??# ##???? | | ?????????????# ######### ### #### #### ##????? | | ?????????????# #??####?????? | | ?????????????# ######???????????? | | ??????????????# ###### ####????????????????? | | ?????????????????????## ###???????????????????? | | ??????????????????????## ??????????????????????? | | ???????????????????????# ??????????????????????? | | ???????????????????????# ??????????????????????? | | ????????##?????????????# ??????????????????????? | | ???????? ?????????????# ??????????????????????? | | ????##?? #????????????# ?## ????????###???????? | | ???## ? #???????????# ## ?????## #???????? | | ??## ?? ??????????## # ??#### ???????# | | ??# ?? ????????## ### ???????## | | ??# ?? #?????### ??????## | | ??# ??# #????? #?????## | | ??# ### #??# #????## | | ??# #?# #??#### ##??## | | ??## ### ##???## ### #### | | ???## #??## #?## | +----------------------------------------------------+ Best States ------------- Heat Dissipation 25 Energy Generation 10 Energy Capacity 125 Matter Stores 300 Matter Capacity 300 Sight Range 16 Terrain Scan Range 16 Terrain Scan Density 10 Armor Coverage 150 Weapon Shielding 33 Evasion (%) 42 Recoil Reduction 2 Item Schematics ----------------- None Robot Schematics ------------------ None Fabricated ------------ Nothing Alien Tech Used ----------------- None Achievements -------------- None Challenges ------------ None Game ------ Seed VariableOpticalMeganuke Manual? 0 Play Time 00:22:50 Cumulative 91.0 hours Start 2022.07.23 @ 21:22:52 End 2022.07.23 @ 21:44:31 Sessions 1 Manual Loads 0 Difficulty Rogue Special Mode None Game No. 60 Rogue 59 Adventurer 0 Explorer 1 Win Type - Total 0 Types 0/0/0/0/0/0/0/0/0 Lore% 22 Gallery% 36 Achievement% 26 Wizard Run 0 Options --------- ASCII 0 Keyboard 0 Movement Mouse Keybinds 0 Fullscreen 1 Font 36/TerminusBold Map View 76x50 Tactical HUD 1 Map Filters NONE Filters NONE Steam 1 RUN: 00fbe43b-e66b-4b52-b9c0-7953fb7a4b01